bitfinex-derivatives/quotes_SOLF0:USTF0_20250320
["timestamp","ask_amount","ask_price","bid_price","bid_amount"]
[1742467094722,0.0483026,130.81,130.79,7.6483]
[1742467094930,0.0483026,130.81,130.78,30.90910249]
[1742467095928,7.6964026,130.81,130.78,0.04910249]
[1742467096426,0.0483026,130.81,130.78,0.04910249]
[1742467096821,0.0483026,130.81,130.79,7.6484]
[1742467097329,0.0483026,130.81,130.78,0.04910249]
[1742467098327,0.0483026,130.81,130.8,7.6481]
[1742467098731,0.0483026,130.81,130.78,0.04910249]
[1742467099126,30.9083026,130.81,130.78,0.04910249]
[1742467099326,8.2788,130.8,130.71,294.53511318]
[1742467099527,7.6496,130.78,130.75,7.6507]
[1742467099731,8.2788,130.8,130.75,7.6507]
[1742467099937,8.2788,130.8,130.73,30.86]
[1742467100131,8.2788,130.8,130.75,7.6505]
[1742467100132,7.6491,130.79,130.75,7.6505]
[1742467100329,0.05141082,130.78,130.75,7.70556766]
[1742467100635,0.05141082,130.78,130.75,0.05506766]
[1742467100832,30.91141082,130.78,130.75,0.05506766]
[1742467101226,38.56111082,130.78,130.75,7.70606766]
[1742467101432,30.91141082,130.78,130.75,0.05506766]
[1742467101837,30.91141082,130.78,130.7,30.86]
[1742467102036,30.91141082,130.78,130.68,38.72001084]
[1742467102232,7.6515,130.75,130.71,7.6528]
[1742467102434,30.86,130.78,130.69,30.86]
[1742467102929,30.86,130.78,130.73,7.6518]
[1742467103129,0.05681106,130.75,130.72,0.04789975]
[1742467103334,7.652,130.74,130.72,0.04789975]
[1742467103935,30.91681106,130.75,130.72,0.04789975]
[1742467104537,0.05681106,130.75,130.72,0.04789975]
[1742467104939,0.05681106,130.75,130.74,7.6516]
[1742467105740,0.05681106,130.75,130.72,0.04789975]
[1742467106533,0.05681106,130.75,130.73,7.6518]
[1742467106738,0.05681106,130.75,130.72,0.04789975]
[1742467106938,0.05681106,130.75,130.73,7.6522]
[1742467107144,0.05681106,130.75,130.72,0.04789975]
[1742467107648,0.05681106,130.75,130.74,7.6516]
[1742467108645,0.05681106,130.75,130.73,7.6521]
[1742467108845,0.05681106,130.75,130.72,0.04789975]
[1742467109843,0.05681106,130.75,130.73,7.6519]
[1742467110347,0.05681106,130.75,130.74,7.6516]
[1742467112747,0.05681106,130.75,130.73,7.6519]
[1742467113550,0.05681106,130.75,130.74,7.6516]
[1742467114451,0.05681106,130.75,130.73,7.652]
[1742467114646,0.05681106,130.75,130.72,0.04789975]
[1742467114949,7.6518,130.74,130.72,0.04789975]
[1742467115152,0.05681106,130.75,130.72,0.04789975]
[1742467115453,4.18451106,130.75,130.72,0.04789975]
[1742467116454,7.6529,130.72,130.68,38.5147]
[1742467116653,7.6529,130.72,130.68,7.6547]
[1742467116854,8.3276,130.74,130.68,7.6547]
[1742467117056,30.86,130.73,130.67,7.6554]
[1742467117354,30.86,130.73,130.66,283.2]
[1742467117551,7.7022376,130.71,130.66,283.2]
[1742467117752,0.0485376,130.71,130.66,252.34]
[1742467117954,30.86,130.7,130.64,73.07511318]
[1742467118457,0.05219383,130.68,130.64,73.07511318]
[1742467119050,0.05219383,130.68,130.64,42.21511318]
[1742467119456,0.05219383,130.68,130.67,7.6557]
[1742467126467,9.383e-05,130.68,130.67,7.6557]
[1742467126762,34.9877,130.75,130.67,7.66]
[1742467126959,30.86,130.77,130.69,28.24206225]
[1742467127754,30.86,130.77,130.75,7.6509]
[1742467128161,30.91024544,130.77,130.75,7.6509]
[1742467128364,30.91024544,130.77,130.75,0.05219383]
[1742467128963,4.0279,130.76,130.7,30.86]
[1742467129462,11.6789,130.76,130.7,38.5136]
[1742467129866,4.0279,130.76,130.68,30.86]
[1742467130066,7.6513,130.75,130.69,7.654]
[1742467130261,7.6513,130.75,130.67,252.52]
[1742467130262,0.05686597,130.73,130.67,252.52]
[1742467130661,0.05686597,130.73,130.68,7.6548]
[1742467131165,7.70916597,130.73,130.68,7.6548]
[1742467131367,7.70916597,130.73,130.69,7.6545]
[1742467131567,0.05686597,130.73,130.69,7.6545]
[1742467131764,0.05686597,130.73,130.67,252.52]
[1742467131964,0.05686597,130.73,130.7,7.6537]
[1742467132163,0.05686597,130.73,130.67,252.52]
[1742467132368,30.09771756,130.74,130.67,252.52]
[1742467132666,30.09771756,130.74,130.69,0.05579964]
[1742467132866,30.09771756,130.74,130.69,30.91579964]
[1742467133464,30.09771756,130.74,130.7,7.6537]
[1742467133663,0.05580276,130.73,130.69,30.91579964]
[1742467134064,0.05580276,130.73,130.69,0.05579964]
[1742467134962,7.70840276,130.73,130.69,0.05579964]
[1742467135163,0.05580276,130.73,130.69,0.05579964]
[1742467136470,0.05580276,130.73,130.7,7.6536]
[1742467136664,0.05580276,130.73,130.69,0.05579964]
[1742467136972,0.05580276,130.73,130.7,7.6535]
[1742467137171,0.05580276,130.73,130.69,0.05579964]
[1742467137471,0.05580276,130.73,130.71,7.653]
[1742467137773,0.05580276,130.73,130.69,0.05579964]
[1742467137968,0.05580276,130.73,130.71,7.6531]
[1742467138469,0.05580276,130.73,130.69,0.05579964]
[1742467138670,0.05580276,130.73,130.7,30.84]
[1742467139172,0.05580276,130.73,130.72,7.6528]
[1742467143778,34.9742,130.8,130.71,28.24206225]
[1742467144175,34.9742,130.8,130.73,28.24206225]
[1742467144374,30.84,130.83,130.74,30.84]
[1742467145075,0.05208596,130.8,130.77,0.04852439]
[1742467145273,0.05208596,130.8,130.77,30.88852439]
[1742467145478,0.05208596,130.8,130.78,7.649]
[1742467145681,0.05208596,130.8,130.77,30.88852439]
[1742467145869,0.05208596,130.8,130.78,7.6493]
[1742467146073,0.05208596,130.8,130.77,30.88852439]
[1742467146377,7.70058596,130.8,130.77,0.04852439]
[1742467146577,48.5764119,130.8,130.73,252.48]
[1742467146875,48.5764119,130.8,130.68,10.74214859]
[1742467146876,7.6517,130.74,130.7,7.6536]
[1742467147071,30.84,130.74,130.68,262.91794859]
[1742467147379,30.84,130.76,130.68,262.91794859]
[1742467147579,38.4894,130.78,130.74,7.6516]
[1742467147778,0.04842183,130.75,130.74,7.6516]
[1742467148169,0.04842183,130.75,130.71,30.84]
[1742467148475,30.88842183,130.75,130.73,0.05773183]
[1742467149276,0.04842183,130.75,130.73,0.05773183]
[1742467149673,0.04842183,130.75,130.74,7.6516]
[1742467149980,30.84,130.82,130.74,28.32901989]
[1742467150281,7.6473,130.82,130.78,7.649]
[1742467150475,30.84,130.83,130.75,30.84]
[1742467151180,0.04855297,130.8,130.79,7.6487]
[1742467151381,0.04855297,130.8,130.78,0.05520563]
[1742467151976,0.04855297,130.8,130.78,30.89520563]
[1742467152173,0.04855297,130.8,130.79,7.6487]
[1742467152482,35.0863,130.88,130.78,30.89520563]
[1742467152683,43.3014,130.88,130.78,30.89520563]
[1742467152876,43.3014,130.88,130.84,7.6454]
[1742467153274,43.3014,130.88,130.85,7.6448]
[1742467153474,12.4814,130.88,130.81,30.82]
[1742467153679,12.53431097,130.88,130.85,0.05549863]
[1742467154182,7.6446,130.86,130.85,0.05549863]
[1742467154679,7.6446,130.86,130.8,252.42]
[1742467154880,30.82,130.87,130.8,283.24]
[1742467155079,28.32901989,130.86,130.78,30.82]
[1742467155283,7.6473,130.82,130.78,30.82]
[1742467155479,30.82,130.84,130.78,38.4692]
[1742467155687,30.82,130.84,130.78,30.82]
[1742467155880,0.05549941,130.82,130.8,0.05384994]
[1742467156686,0.05549941,130.82,130.81,30.82]
[1742467156886,0.05549941,130.82,130.81,38.4675]
[1742467158084,8.2151,130.88,130.81,283.2]
[1742467158285,30.82,130.9,130.83,28.32901989]
[1742467158482,38.4626,130.9,130.85,7.6448]
[1742467158880,30.82,130.9,130.84,30.82]
[1742467159077,7.69472358,130.88,130.86,0.04910966]
[1742467159287,0.05072358,130.88,130.86,0.04910966]
[1742467159488,0.05072358,130.88,130.81,283.2]
[1742467159687,0.05072358,130.88,130.81,252.38]
[1742467159987,30.82,130.87,130.81,283.2]
[1742467160182,7.645,130.86,130.81,290.8474]
[1742467160383,30.82,130.87,130.81,290.8474]
[1742467160587,30.82,130.87,130.81,283.2]
[1742467160788,0.0482709,130.85,130.83,0.05194005]
[1742467162589,0.0482709,130.85,130.83,7.69814005]
[1742467162790,0.0482709,130.85,130.83,0.05194005]
[1742467164991,30.8,130.84,130.76,252.3]
[1742467165191,28.32901989,130.82,130.72,42.21511318]
[1742467165400,30.8,130.81,130.73,30.8]
[1742467165691,30.8,130.81,130.74,7.6515]
[1742467165996,30.8,130.81,130.73,30.8]
[1742467166198,0.04901307,130.79,130.76,0.04937265]
[1742467166595,7.6499,130.77,130.76,0.04937265]
[1742467166892,30.8,130.78,130.73,30.8]
[1742467167088,30.8,130.78,130.71,283.1]
[1742467167992,7.6501,130.77,130.73,7.6517]
[1742467168192,0.05713067,130.76,130.71,311.42901989]
[1742467168394,0.05713067,130.76,130.75,7.651]
[1742467168588,4.3255,130.83,130.75,30.8]
[1742467169001,7.648,130.81,130.76,7.6501]
[1742467169298,4.3255,130.83,130.75,30.8]
[1742467169796,0.05534868,130.8,130.78,0.05523705]
[1742467169998,7.70344868,130.8,130.78,0.05523705]
[1742467170198,0.05534868,130.8,130.78,0.05523705]
[1742467171198,0.05534868,130.8,130.78,7.70453705]
[1742467171499,0.05534868,130.8,130.78,0.05523705]
[1742467172095,0.05534868,130.8,130.78,30.85523705]
[1742467173005,0.05534868,130.8,130.78,0.05523705]
[1742467174299,0.05534868,130.8,130.75,30.8]
[1742467174501,0.05534868,130.8,130.73,30.8]
[1742467174701,30.8,130.81,130.73,30.8]
[1742467174899,38.448,130.81,130.77,7.6495]
[1742467175403,0.04903162,130.8,130.77,7.6495]
[1742467175805,0.04903162,130.8,130.73,30.8]
[1742467176204,7.6489,130.79,130.75,7.6507]
[1742467176398,7.6489,130.79,130.73,30.8]
[1742467176599,30.8,130.81,130.73,30.8]
[1742467176804,0.05658843,130.77,130.73,30.8]
[1742467177501,0.05658843,130.77,130.74,7.6515]
[1742467177903,0.05658843,130.77,130.73,30.8]
[1742467178408,0.05658843,130.77,130.69,36.69171989]
[1742467178707,0.05658843,130.77,130.72,30.8]
[1742467179806,0.05658843,130.77,130.75,7.6506]
[1742467180008,0.05658843,130.77,130.72,30.8]
[1742467180406,30.85658843,130.77,130.68,28.32901989]
[1742467180707,8.4422,130.76,130.68,28.32901989]
[1742467180902,0.0518718,130.74,130.71,7.6531]
[1742467181206,0.0518718,130.74,130.7,30.8]
[1742467181405,0.0518718,130.74,130.71,7.6533]
[1742467181806,0.0518718,130.74,130.7,30.8]
[1742467182008,0.0518718,130.74,130.71,7.6528]
[1742467182208,0.0518718,130.74,130.7,30.8]
[1742467183804,7.7037718,130.74,130.7,7.6537]
[1742467184210,7.6522,130.73,130.69,38.4544]
[1742467184410,0.0518718,130.74,130.69,30.8]
[1742467185110,0.0518718,130.74,130.7,17.69937037]
[1742467185310,0.0518718,130.74,130.71,7.653]
[1742467185509,0.0518718,130.74,130.7,17.69937037]
[1742467185908,0.0518718,130.74,130.71,7.6533]
[1742467186111,0.0518718,130.74,130.7,17.69937037]
[1742467186309,0.0518718,130.74,130.68,17.69937037]
[1742467186501,8.4422,130.76,130.68,30.8]
[1742467186502,17.69937037,130.75,130.68,30.8]
[1742467186702,0.04988824,130.72,130.68,30.8]
[1742467186907,0.04988824,130.72,130.68,48.49937037]
[1742467187612,0.04988824,130.72,130.71,7.6534]
[1742467189009,0.04988824,130.72,130.71,38.4534]
[1742467189309,252.38,130.81,130.71,30.8]
[1742467189310,270.07937037,130.81,130.71,30.8]
[1742467189516,43.3276,130.82,130.74,17.69937037]
[1742467189813,7.6443,130.87,130.8,17.69937037]
[1742467190013,38.4443,130.87,130.8,48.49937037]
[1742467190212,30.8,130.87,130.8,48.49937037]
[1742467190412,0.05519809,130.85,130.82,0.05795101]
[1742467190814,0.05519809,130.85,130.83,7.6464]
[1742467191116,0.05519809,130.85,130.82,0.05795101]
[1742467191315,0.05519809,130.85,130.83,7.646]
[1742467191514,0.05519809,130.85,130.82,0.05795101]
[1742467192215,0.05519809,130.85,130.83,7.6464]
[1742467192815,0.05519809,130.85,130.82,7.70465101]
[1742467193115,0.05519809,130.85,130.82,0.05795101]
[1742467194021,30.85519809,130.85,130.82,0.05795101]
[1742467194414,7.6464,130.83,130.82,0.05795101]
[1742467195221,7.646,130.84,130.82,0.05795101]
[1742467195630,30.85519809,130.85,130.82,0.05795101]
[1742467196128,7.6464,130.83,130.82,0.05795101]
[1742467197017,38.4464,130.83,130.82,0.05795101]
[1742467197622,7.6478,130.81,130.78,252.46]
[1742467198024,7.6478,130.81,130.78,7.6493]
[1742467198224,30.8,130.83,130.76,30.8]
[1742467198723,7.649,130.79,130.74,30.8]
[1742467198918,38.449,130.79,130.73,252.36]
[1742467199122,0.05096559,130.78,130.73,252.36]
[1742467200427,0.05096559,130.78,130.76,7.6501]
[1742467201027,0.05096559,130.78,130.75,38.4508]
[1742467201217,0.05096559,130.78,130.75,30.8]
[1742467202734,7.70066559,130.78,130.74,7.6515]
[1742467203026,0.05096559,130.78,130.73,283.16]
[1742467203329,7.6505,130.76,130.73,290.8119]
[1742467203530,0.05096559,130.78,130.73,252.36]
[1742467203931,7.6502,130.77,130.74,7.6513]
[1742467204135,0.05096559,130.78,130.69,28.27083037]
[1742467204432,30.8,130.79,130.7,30.78]
[1742467204634,0.05202276,130.75,130.7,30.78]
[1742467204828,30.83202276,130.75,130.7,30.78]
[1742467205032,7.6525,130.73,130.7,7.6535]
[1742467205232,30.83202276,130.75,130.68,283.16]
[1742467205425,30.78,130.75,130.68,252.38]
[1742467205629,0.05438436,130.73,130.68,283.16]
[1742467206938,0.05438436,130.73,130.68,252.38]
[1742467207437,0.05438436,130.73,130.71,7.6532]
[1742467207633,0.05438436,130.73,130.68,283.18]
[1742467208543,0.05438436,130.73,130.72,7.6528]
[1742467209640,0.05438436,130.73,130.71,7.6531]
[1742467209839,0.05438436,130.73,130.68,283.18]
[1742467210031,0.05438436,130.73,130.69,7.6542]
[1742467210234,0.05438436,130.73,130.68,283.18]
[1742467210547,0.05438436,130.73,130.72,7.6528]
[1742467210842,0.05438436,130.73,130.68,252.38]
[1742467211042,0.05438436,130.73,130.69,30.8]
[1742467211236,0.05438436,130.73,130.71,7.653]
[1742467211434,0.05438436,130.73,130.69,30.8]
[1742467211945,0.05438436,130.73,130.68,252.38]
[1742467212139,0.05438436,130.73,130.67,30.8]
[1742467212335,7.70698436,130.73,130.69,7.6543]
[1742467212636,0.05438436,130.73,130.65,0.5183]
[1742467212842,7.6543,130.7,130.65,30.8]
[1742467213138,7.70704915,130.7,130.64,17.71437826]
[1742467213439,0.05274915,130.7,130.67,7.6553]
[1742467213640,0.05274915,130.7,130.65,30.8]
[1742467214039,0.05274915,130.7,130.66,17.71437826]
[1742467214942,30.8,130.79,130.69,17.71437826]
[1742467215140,30.8,130.79,130.72,25.36717826]
[1742467215343,30.8,130.79,130.72,17.71437826]
[1742467215544,7.6496,130.78,130.73,7.6519]
[1742467215841,30.8,130.79,130.72,17.71437826]
[1742467216042,0.05742704,130.77,130.74,0.05612858]
[1742467216343,0.05742704,130.77,130.74,7.70742858]
[1742467216543,0.05742704,130.77,130.74,0.05612858]
[1742467216734,0.05742704,130.77,130.74,7.70752858]
[1742467216930,0.05742704,130.77,130.74,0.05612858]
[1742467217431,0.05742704,130.77,130.74,7.70722858]
[1742467218040,0.05742704,130.77,130.74,0.05612858]
[1742467218441,7.70762704,130.77,130.74,0.05612858]
[1742467219138,0.05742704,130.77,130.74,0.05612858]
[1742467219944,7.70742704,130.77,130.74,0.05612858]
[1742467220341,7.6508,130.76,130.74,0.05612858]
[1742467220540,0.05742704,130.77,130.74,0.05612858]
[1742467221042,7.70762704,130.77,130.74,0.05612858]
[1742467221341,0.05742704,130.77,130.74,0.05612858]
[1742467221749,0.05742704,130.77,130.74,7.70762858]
[1742467222038,0.05742704,130.77,130.74,0.05612858]
[1742467222244,7.6506,130.76,130.74,0.05612858]
[1742467222839,7.651,130.75,130.74,0.05612858]
[1742467223645,46.6656,130.76,130.74,0.05612858]
[1742467223941,39.0149,130.76,130.74,0.05612858]
[1742467224248,0.05742704,130.77,130.74,0.05612858]
[1742467224546,0.05742704,130.77,130.76,7.6505]
[1742467225136,0.05742704,130.77,130.75,7.6509]
[1742467225340,0.05742704,130.77,130.74,0.05612858]
[1742467225949,7.70762704,130.77,130.74,0.05612858]
[1742467226242,0.05742704,130.77,130.74,0.05612858]
[1742467227649,7.6508,130.76,130.74,0.05612858]
[1742467227849,0.05742704,130.77,130.74,0.05612858]
[1742467228151,17.7718053,130.77,130.68,300.97437826]
[1742467228349,17.71437826,130.77,130.68,270.19437826]
[1742467229049,17.71437826,130.75,130.66,58.97232685]
[1742467229242,38.97672832,130.74,130.66,58.97232685]
[1742467229447,38.9262,130.74,130.69,7.6545]
[1742467229645,0.05308628,130.71,130.69,7.6545]
[1742467229946,0.05308628,130.71,130.7,7.654]
[1742467230346,0.05308628,130.71,130.68,17.71437826]
[1742467230648,0.05308628,130.71,130.68,7.6549]
[1742467231348,0.05308628,130.71,130.69,7.6544]
[1742467231755,30.78,130.7,130.55,48.36517826]
[1742467231954,30.78,130.7,130.63,283.24]
[1742467232145,0.04979764,130.68,130.64,17.71437826]
[1742467232351,0.04979764,130.68,130.66,17.71437826]
[1742467232552,0.04979764,130.68,130.67,7.6557]
[1742467236358,0.04979764,130.68,130.66,56.15057826]
[1742467236659,0.04979764,130.68,130.66,48.49437826]
[1742467236959,0.04979764,130.68,130.67,7.6557]
[1742467238256,0.04979764,130.68,130.66,48.49437826]
[1742467238964,0.04979764,130.68,130.67,7.6557]
[1742467239261,0.04979764,130.68,130.66,48.49437826]
[1742467239959,0.04979764,130.68,130.64,25.37167826]
[1742467240163,0.04979764,130.68,130.64,17.71437826]
[1742467240656,0.04979764,130.68,130.67,7.6557]
[1742467241062,0.04979764,130.68,130.65,7.6568]
[1742467241660,0.04979764,130.68,130.64,25.37167826]
[1742467241862,0.04979764,130.68,130.64,17.71437826]
[1742467242662,0.04979764,130.68,130.67,7.6557]
[1742467244363,0.04979764,130.68,130.64,17.71437826]
[1742467246160,0.04979764,130.68,130.67,7.6557]
[1742467255073,7.70509764,130.68,130.64,17.71437826]
[1742467255274,0.04979764,130.68,130.64,17.71437826]
[1742467255472,0.04979764,130.68,130.66,7.656]
[1742467255670,0.04979764,130.68,130.64,17.71437826]
[1742467256070,0.04979764,130.68,130.67,7.6557]
[1742467258673,0.04979764,130.68,130.64,17.71437826]
[1742467259776,0.04979764,130.68,130.67,7.6557]
[1742467260380,12.0723,130.74,130.66,48.47437826]
[1742467260681,17.71437826,130.79,130.69,17.71437826]
[1742467260877,7.6508,130.76,130.72,7.6524]
[1742467261178,30.76,130.76,130.69,48.47437826]
[1742467261367,7.6505,130.76,130.69,48.47437826]
[1742467261572,0.05196368,130.74,130.72,7.6523]
[1742467262678,0.05196368,130.74,130.73,7.6522]
[1742467263173,0.05196368,130.74,130.71,17.76532488]
[1742467263376,0.05196368,130.74,130.71,0.05094662]
[1742467264080,7.70376368,130.74,130.71,0.05094662]
[1742467264280,0.05196368,130.74,130.71,0.05094662]
[1742467264482,0.05196368,130.74,130.71,7.70424662]
[1742467265283,0.05196368,130.74,130.71,0.05094662]
[1742467266174,0.05196368,130.74,130.73,25.36657826]
[1742467266679,0.05196368,130.74,130.71,7.70414662]
[1742467266881,0.05196368,130.74,130.71,0.05094662]
[1742467267380,0.05196368,130.74,130.73,7.6522]
[1742467269681,0.05196368,130.74,130.73,25.36657826]
[1742467269884,0.05196368,130.74,130.73,56.12657826]
[1742467270576,30.74,130.82,130.73,48.47437826]
[1742467270776,30.74,130.82,130.76,17.71437826]
[1742467270981,12.2666,130.83,130.78,17.71437826]
[1742467271478,14.85020765,130.89,130.77,30.74]
[1742467271684,4.067,130.87,130.82,17.71437826]
[1742467271987,4.243,130.88,130.84,25.35987826]
[1742467272180,0.05180441,130.86,130.84,17.71437826]
[1742467272592,0.05180441,130.86,130.84,25.41635869]
[1742467272887,0.05180441,130.86,130.84,17.77095869]
[1742467273397,0.05180441,130.86,130.85,7.6452]
[1742467273899,0.05180441,130.86,130.84,25.41665869]
[1742467274196,0.05180441,130.86,130.84,17.77095869]
[1742467274591,0.05180441,130.86,130.85,7.6452]
[1742467275195,0.05180441,130.86,130.84,7.70208043]
[1742467275399,0.05180441,130.86,130.84,0.05658043]
[1742467276190,0.05180441,130.86,130.85,7.6452]
[1742467276800,0.05180441,130.86,130.84,0.05658043]
[1742467278289,0.05180441,130.86,130.84,7.70218043]
[1742467278792,0.05180441,130.86,130.84,0.05658043]
[1742467280298,0.05180441,130.86,130.81,252.5]
[1742467280706,11.91420441,130.86,130.81,260.1471]
[1742467281105,4.26940441,130.86,130.81,252.5]
[1742467281400,4.26940441,130.86,130.82,17.71437826]
[1742467281598,0.05180441,130.86,130.83,30.72]
[1742467283400,0.05180441,130.86,130.85,7.6452]
[1742467283606,0.05180441,130.86,130.83,30.72]
[1742467283802,0.05180441,130.86,130.84,7.6455]
[1742467284203,0.05180441,130.86,130.83,30.72]
[1742467284900,0.05180441,130.86,130.83,38.366]
[1742467285607,0.05180441,130.86,130.84,7.6457]
[1742467285800,0.05180441,130.86,130.83,30.72]
[1742467286006,0.05180441,130.86,130.85,7.6452]
[1742467286397,0.05180441,130.86,130.83,30.72]
[1742467287300,0.05180441,130.86,130.83,38.3663]
[1742467287501,0.05180441,130.86,130.83,30.72]
[1742467288504,0.05180441,130.86,130.84,7.6454]
[1742467288900,0.05180441,130.86,130.83,30.72]
[1742467289105,0.05180441,130.86,130.83,38.3661]
[1742467289408,0.05180441,130.86,130.83,30.72]
[1742467289704,0.05180441,130.86,130.84,7.6455]
[1742467290010,0.05180441,130.86,130.83,30.72]
[1742467290209,0.05180441,130.86,130.83,38.3658]
[1742467290410,0.05180441,130.86,130.83,30.72]
[1742467290811,7.6452,130.85,130.83,30.72]
[1742467291006,0.05180441,130.86,130.83,30.72]
[1742467291409,0.05180441,130.86,130.85,7.6452]
[1742467292206,0.05180441,130.86,130.84,7.6456]
[1742467293210,0.05180441,130.86,130.85,7.6452]
[1742467294116,0.05180441,130.86,130.84,7.6456]
[1742467294311,0.05180441,130.86,130.83,30.72]
[1742467294711,0.05180441,130.86,130.84,7.6455]
[1742467295108,0.05180441,130.86,130.83,30.72]
[1742467295907,0.05180441,130.86,130.85,7.6452]
[1742467299311,0.05180441,130.86,130.82,0.04632987]
[1742467299519,0.05180441,130.86,130.82,30.74632987]
[1742467299710,0.05180441,130.86,130.83,7.6463]
[1742467299906,0.05180441,130.86,130.82,30.74632987]
[1742467300215,0.05180441,130.86,130.85,7.6452]
[1742467300614,0.05180441,130.86,130.82,30.74632987]
[1742467300915,0.05180441,130.86,130.83,7.646]
[1742467301116,0.05180441,130.86,130.82,30.74632987]
[1742467303517,0.05180441,130.86,130.83,7.6462]
[1742467303722,0.05180441,130.86,130.82,30.74632987]
[1742467304108,0.05180441,130.86,130.85,7.6452]
[1742467306120,0.05180441,130.86,130.84,7.6456]
[1742467306322,0.05180441,130.86,130.83,17.71437826]
[1742467306723,0.05180441,130.86,130.85,7.6452]
[1742467307314,0.05180441,130.86,130.85,38.3252]
[1742467307818,0.05180441,130.86,130.85,56.03957826]
[1742467309821,0.05180441,130.86,130.85,38.3252]
[1742467312722,0.05180441,130.86,130.82,10.52427846]
[1742467312924,0.05180441,130.86,130.82,41.20427846]
[1742467313329,0.05180441,130.86,130.85,7.6452]
[1742467315035,0.05180441,130.86,130.84,7.6455]
[1742467315533,0.05180441,130.86,130.85,7.6452]
[1742467317536,0.05180441,130.86,130.85,56.03957826]
[1742467317930,3.9883,130.91,130.9,7.6423]
[1742467318833,4.134,130.93,130.9,7.6423]
[1742467319040,0.05232808,130.92,130.89,7.69742436]
[1742467319230,0.05232808,130.92,130.89,0.05482436]
[1742467320327,0.05232808,130.92,130.91,7.6417]
[1742467320532,0.05232808,130.92,130.89,0.05482436]
[1742467322545,0.05232808,130.92,130.91,7.6417]
[1742467322940,0.05232808,130.92,130.9,7.642]
[1742467323137,0.05232808,130.92,130.89,0.05482436]
[1742467323437,0.05232808,130.92,130.89,7.69742436]
[1742467323839,0.05232808,130.92,130.89,0.05482436]
[1742467324238,7.6423,130.9,130.89,0.05482436]
[1742467324446,52.53037826,130.91,130.84,10.47794859]
[1742467324635,21.88827826,130.89,130.84,10.47794859]
[1742467325040,4.1739,130.89,130.84,10.47794859]
[1742467325438,0.04959148,130.88,130.85,0.04330992]
[1742467325648,0.04959148,130.88,130.86,7.6446]
[1742467325941,0.04959148,130.88,130.85,0.04330992]
[1742467326247,0.04959148,130.88,130.87,7.644]
[1742467327046,0.04959148,130.88,130.87,25.35837826]
[1742467327347,4.233,130.94,130.92,7.6409]
[1742467327548,4.233,130.94,130.9,30.66]
[1742467328545,0.05689542,130.93,130.91,0.04843921]
[1742467329348,0.05689542,130.93,130.92,7.6411]
[1742467329949,0.05689542,130.93,130.91,7.68983921]
[1742467330149,0.05689542,130.93,130.91,0.04843921]
[1742467333154,0.05689542,130.93,130.92,7.6411]
[1742467334250,0.05689542,130.93,130.91,0.04843921]
[1742467335156,48.41127368,130.93,130.86,30.64]
[1742467335357,48.35437826,130.93,130.85,48.35437826]
[1742467335656,30.64,130.93,130.85,48.35437826]
[1742467335857,38.2808,130.93,130.89,7.6426]
[1742467336252,0.04826107,130.92,130.9,0.04446219]
[1742467337559,0.04826107,130.92,130.85,30.64]
[1742467338153,17.71437826,130.91,130.84,30.64]
[1742467338352,30.64,130.9,130.84,30.64]
[1742467338857,0.05168261,130.88,130.84,30.64]
[1742467339251,0.05168261,130.88,130.87,7.644]
[1742467339453,0.05168261,130.88,130.84,30.64]
[1742467339848,0.05168261,130.88,130.87,7.644]
[1742467341360,0.05168261,130.88,130.87,38.284]
[1742467341550,0.0053858,130.88,130.87,55.99837826]
[1742467351265,0.0053858,130.88,130.87,38.284]
[1742467352058,0.0053858,130.88,130.87,55.99837826]
[1742467352264,4.233,130.94,130.87,48.35437826]
[1742467352460,4.233,130.94,130.89,17.71437826]
[1742467352862,4.233,130.94,130.93,7.6405]
[1742467353157,4.233,130.94,130.89,17.71437826]
[1742467353359,4.233,130.94,130.92,0.05168261]
[1742467354655,4.233,130.94,130.92,7.69268261]
[1742467354859,4.233,130.94,130.92,0.05168261]
[1742467355263,4.233,130.94,130.92,7.69238261]
[1742467355565,4.233,130.94,130.92,0.05168261]
[1742467356664,48.33437826,130.93,130.83,312.10949144]
[1742467356868,17.71437826,130.91,130.84,7.6454]
[1742467357065,17.71437826,130.89,130.85,10.47794859]